Cogmind - Beta 16.1 @@@ ROGUE MODE // 2026.06.17 @ 22:00:38 Player: 0R-LIM Result: Destroyed by G-47 Trooper with Particle Gun Performance ------------- Evolutions (0) 0 Regions Visited (2) 400 Robots Destroyed (24) 120 Value Destroyed (401) 401 Prototype IDs (4) 80 Alien Tech Used (0) 0 Bonus (0) 0 TOTAL SCORE: 1001 Bonus ------- None Cogmind --------- Core Integrity 0/250 Matter 261/300 Energy 100/100 System Corruption 4% Temperature Cool (15) Movement Rolling (200) Ox8 Location -10/Mines Parts ------- > --- POWER (1) -------- (None) > --- PROPULSION (2) --- Wheel > --- UTILITY (2) ------ Huge Storage Unit Targeting Computer > --- WEAPON (2) ------- Hammer > --- INVENTORY (25) --- Ion Engine Light Treads Light Treads Wheel Wheel Heat Sink Heat Sink Small Storage Unit Sensor Array Signal Interpreter Light Armor Plating Small Laser Grenade Launcher Peak State ------------ > --- POWER ------------ Light Ion Engine > --- PROPULSION ------- Wheel Wheel > --- UTILITY ---------- Huge Storage Unit Seismic Detector > --- WEAPON ----------- EM Pulse Gun Assault Rifle > --- INVENTORY -------- Ion Engine Light Treads Light Treads Wheel Wheel Heat Sink Small Storage Unit Assault Rifle Grenade Launcher Hammer [Rating: 8] Favorites ----------- Power Light Ion Engine Engine Light Ion Engine Propulsion Wheel Wheel Wheel Utility Huge Storage Unit Device Seismic Detector Storage Huge Storage Unit Processor Targeting Computer Weapon Assault Rifle Energy Gun EM Pulse Gun Ballistic Gun Assault Rifle Launcher Grenade Launcher Impact Weapon Hammer Build | -11 -10 -10 ------- Run | Yrd Mat Min Slots Evolved . | . . . Power . | . . . Propulsion . | . . . Utility . | . . . Weapon . | . . . Parts Attached 15 | 7 8 . Power 1 | 1 . . Engine 1 | 1 . . Core . | . . . Reactor . | . . . Propulsion 5 | 2 3 . Treads . | . . . Leg . | . . . Wheel 5 | 2 3 . Hover . | . . . Flight . | . . . Utility 4 | 2 2 . Device 1 | 1 . . Storage 2 | 1 1 . Processor 1 | . 1 . Hackware . | . . . Protection . | . . . Artifact . | . . . Weapon 5 | 2 3 . Energy Gun 1 | . 1 . Energy Cannon . | . . . Ballistic Gun 2 | 2 . . Ballistic Cannon . | . . . Launcher 1 | . 1 . Special Weapon . | . . . Impact Weapon 1 | . 1 . Slashing Weapon . | . . . Piercing Weapon . | . . . Special Melee Weapon . | . . . Unidentified Prototypes . | . . . Parts Lost 8 | . 8 . Power 1 | . 1 . Propulsion 3 | . 3 . Utility 1 | . 1 . Weapon 3 | . 3 . Highest Loss Streak 4 | . 4 . To Critical Strikes . | . . . Average Backups 9 | 1 9 13 Power . | . 1 1 Propulsion 2 | . 3 4 Utility 3 | . 3 6 Weapon 2 | . 2 2 Tool/Special . | . . . Unused Backups 12 | . 1 11 Power 1 | . . 1 Propulsion 4 | . . 4 Utility 5 | . . 5 Weapon 2 | . 1 1 Tool/Special . | . . . Average Slot Usage (%) 90 | . 90 66 Engine 9 | . 9 . Wheel 27 | . 27 23 Device 9 | . 9 . Storage 14 | . 14 14 Processor 4 | . 4 14 Energy Gun 3 | . 3 . Ballistic Gun 16 | . 16 . Impact Weapon 4 | . 3 14 Peak Build Rating 8 | 7 8 6 Average Rating 6 | 5 7 5 On Entrance 4 | . 7 6 Avg Prop Armor Cover (%) . | . . . Naked Turns . | . . . Heaviest Build 88 | 13 88 82 Greatest Support 20 | 20 20 20 Greatest Overweight (x) 8 | . 4 8 Average Overweight (x) 2 | . 2 5 Largest Inventory Capacity 25 | 8 25 25 Average Capacity 19 | 7 20 25 Most Carried 15 | 2 15 13 Average Carried 9 | 1 9 13 Final Capacity 25 | 8 25 25 Final Carried 13 | 2 13 13 Class Distribution -------------------- 100% | Mutant Dominant Class ---------------- Mutant | -10/Materials Mutant | -10/Mines Resources | -11 -10 -10 ----------- Run | Yrd Mat Min Matter Collected 706 | 140 566 . Remotely . | . . . Salvage Created 715 | 121 594 . Parts 49 | 9 40 . Haulers Intercepted 2 | . 2 . Recyclers Shooed 2 | 1 1 . Parts Field Recycled . | . . . Retrieved Matter . | . . . Parts Self-Destructed . | . . . Prevented . | . . . Parts Restored . | . . . Kills | -11 -10 -10 ------- Run | Yrd Mat Min Combat Hostiles Destroyed 12 | . 12 . Guns 8 | . 8 . AOE 3 | . 3 . Classes Destroyed 9 | 2 7 . Worker 2 | . 2 . Builder 1 | . 1 . Tunneler 4 | 2 2 . Hauler 2 | . 2 . Recycler 1 | 1 . . Operator 1 | . 1 . Watcher 1 | . 1 . Swarmer 5 | . 5 . Grunt 7 | . 7 . Best Kill Streak 4 | 3 4 . Combat Bots Only 3 | . 3 . Max Kills in Single Turn 3 | 1 3 . Gunslinging . | . . . Exploded 3 | . 3 . Melee . | . . . Uniques/NPCs Destroyed . | . . . Combat | -11 -10 -10 -------- Run | Yrd Mat Min Hostile Shots Fired 92 | . 80 12 Missed 19 | . 16 3 Hits 73 | . 64 9 Projectile 73 | . 64 9 Critical Strikes 1 | . 1 . Damage Taken 883 | . 758 125 Core 259 | . 173 86 Absorbed by Shields . | . . . Core Remaining (%) 100 | 100 . . Volleys Fired 83 | 8 75 . Largest 2 | 2 2 . Hottest 60 | 40 60 . Shots Fired 149 | 16 133 . Gun 148 | 16 132 . Cannon . | . . . Launcher 1 | . 1 . Special . | . . . Kinetic 125 | 16 109 . Thermal . | . . . Explosive 1 | . 1 . Electromagnetic 23 | . 23 . Robot Hit Streak 11 | 10 11 . Robot Miss Streak 3 | 2 3 . Penetration Max . | . . . Secondary Targets 1 | . 1 . Max Gunslinging Chain 1 | . 1 . Shots Hit Robots 108 | 12 96 . Core Hits 34 | 4 30 . Critical Kills 1 | . 1 . Critical Parts Destroyed 2 | . 2 . Critical Strikes 4 | . 4 . Destroy 1 | . 1 . Corrupt 1 | . 1 . Smash 2 | . 2 . Melee Attacks 11 | . 9 2 Impact 11 | . 9 2 Slashing . | . . . Piercing . | . . . Sneak Attacks 3 | . 3 . Combat Hostiles . | . . . Follow-up Attacks . | . . . Damage Inflicted 1641 | 143 1498 . Guns 1287 | 143 1144 . Cannons . | . . . Explosions 130 | . 130 . Melee 224 | . 224 . Ramming . | . . . Kinetic 1113 | 143 970 . Thermal . | . . . Explosive 130 | . 130 . Electromagnetic 174 | . 174 . Impact 224 | . 224 . Slashing . | . . . Piercing . | . . . Highest Corruption 4 | . 4 4 Average Corruption 3 | . 3 4 Corruption Purged . | . . . Corruption Blocked . | . . . Effects 1 | . . 1 Parts Rejected 1 | . . 1 Overload Shots . | . . . Overflow Damage 72 | . 72 . Projectiles . | . . . Explosions 21 | . 21 . Melee 51 | . 51 . Knockbacks . | . . . Impact . | . . . Kinetic . | . . . Secondary . | . . . Self-Inflicted Damage 13 | . 13 . Shots 1 | . 1 . Rammed . | . . . Targets Rammed . | . . . Kicked . | . . . Crushed . | . . . Highest Temperature 48 | . 48 . Average Temperature 21 | . 21 . Received Heat Transfer 429 | . 360 69 Siege Activations . | . . . Martial Activations . | . . . Shielding Activations . | . . . Robots Disrupted . | . . . Combat Hostiles . | . . . Robots Corrupted 1 | . 1 . Combat Hostiles 1 | . 1 . Parts Fried 1 | . 1 . Impact Corruptions 3 | . 3 . Robots Melted . | . . . Combat Hostiles . | . . . Parts Melted . | . . . Heat Transferred . | . . . Parts Sabotaged . | . . . Parts Stolen . | . . . Parts Stripped . | . . . Power Chain Reactions . | . . . Alert | -11 -10 -10 ------- Run | Yrd Mat Min Maximum Alert Level 1 | . 1 . Low Security (%) 94 | 100 94 100 Level 1 5 | . 5 . Level 2 . | . . . Level 3 . | . . . Level 4 . | . . . Level 5 . | . . . High Security . | . . . Max Security . | . . . Peak Influence 221 | 5 221 50 Initial 50 | . 3 50 Average 105 | 2 112 50 Influence Increases 668 | 15 653 . Destroy 0b10 Robot/C 240 | . 240 . Destroy 0b10 Robot/NC 60 | 15 45 . Destroy Leader 66 | . 66 . Successful Hack 23 | . 23 . Disable Machine 15 | . 15 . Destroy Structure 9 | . 9 . Lose Combat Pursuer 255 | . 255 . Influence Decreases 618 | 10 528 80 Entered New Map 82 | . 2 80 Time Decay 456 | 10 446 . Lost Part 80 | . 80 . Squads Dispatched 3 | . 3 . Investigation 1 | . 1 . Extermination . | . . . Reinforcement 2 | . 2 . Assault . | . . . Garrison . | . . . Intercept . | . . . Searches Triggered . | . . . Construction Impeded . | . . . Haulers Reinforced . | . . . Active Scanning Responses . | . . . Cargo Convoy Interrupts . | . . . Stealth | -11 -10 -10 --------- Run | Yrd Mat Min Distress Signals 1 | . 1 . Communications Jammed . | . . . Distress Signals . | . . . Times Spotted 37 | . 35 2 Peak Tracking Total 5 | . 5 2 Tactical Retreats 15 | . 15 . Traps | -11 -10 -10 ------- Run | Yrd Mat Min Traps Triggered 3 | . 3 . Indirectly . | . . . Trap Hack Attempts . | . . . Triggered . | . . . Disarmed . | . . . Reprogrammed . | . . . Reused . | . . . Traps Extracted . | . . . Installed . | . . . Triggered . | . . . Machines | -11 -10 -10 ---------- Run | Yrd Mat Min Machines Disabled 1 | . 1 . Max in Single Turn 1 | . 1 . Machines Repaired . | . . . Machines Dismantled . | . . . Machines Sabotaged . | . . . Overloaded Fab Kills . | . . . Hacking | -11 -10 -10 --------- Run | Yrd Mat Min Machines Accessed 6 | . 6 . Terminals 5 | . 5 . Fabricators . | . . . Repair Stations . | . . . Recycling Units 1 | . 1 . Scanalyzers . | . . . Garrison Access . | . . . Total Hacks 14 | . 14 . Successful 5 | . 5 . Failed 9 | . 9 . Catastrophic . | . . . Database Lockouts . | . . . Manual 3 | . 3 . Terminals 13 | . 13 . Fabricators . | . . . Repair Stations . | . . . Recycling Units 1 | . 1 . Scanalyzers . | . . . Garrison Access . | . . . Terminal Hacks 4 | . 4 . Record 1 | . 1 . Prototype ID Bank 2 | . 2 . Alert Level 1 | . 1 . Fabricator Hacks . | . . . Repair Station Hacks . | . . . Recycling Unit Hacks 1 | . 1 . Report Inventory 1 | . 1 . Scanalyzer . | . . . Garrison Access Hacks . | . . . Unauthorized Hacks . | . . . Terminals . | . . . Fabricators . | . . . Repair Stations . | . . . Recycling Units . | . . . Scanalyzers . | . . . Garrison Access . | . . . Data Cores Recovered 1 | . 1 . Used 1 | . 1 . Hacking Detections 3 | . 3 . Full Trace Events . | . . . Feedback Events . | . . . Feedback Blocked . | . . . Robot Schematics Acquired . | . . . Robots Built . | . . . Authchips . | . . . Time . | . . . Total Robot Build Rating . | . . . Part Schematics Acquired . | . . . Parts Built . | . . . Authchips . | . . . Time . | . . . Total Part Build Rating . | . . . Part Studies Acquired . | . . . Parts Repaired . | . . . Time . | . . . Parts Recycled . | . . . Recycled Matter . | . . . Retrieved Matter . | . . . Retrieved Components . | . . . Parts Scanalyzed . | . . . Part Schematics Acquired . | . . . Parts Damaged . | . . . Bothacking | -11 -10 -10 ------------ Run | Yrd Mat Min Used RIF Installer . | . . . Robots Hacked . | . . . Non-combat . | . . . Combat . | . . . Robot Hacks Applied . | . . . Relay Couplers Released . | . . . Fabnet Peak Effective % . | . . . Robots Rewired . | . . . Allies Hacked . | . . . Hacks Repelled . | . . . Allies | -11 -10 -10 -------- Run | Yrd Mat Min Total Allies . | . . . Largest Group . | . . . Highest-Rated Group . | . . . Highest-Rated Ally . | . . . Total Orders . | . . . Ally Attacks . | . . . Total Damage . | . . . Kills . | . . . Allies Corrupted . | . . . Allies Melted . | . . . Intel | -11 -10 -10 ------- Run | Yrd Mat Min Active Infowar (turns) 998 | 10 988 . Seismic 998 | 10 988 . Robot Analysis Total . | . . . Derelict Logs Recovered . | . . . Drone Launches . | . . . Drone Recoveries . | . . . Exploration | -11 -10 -10 ------------- Run | Yrd Mat Min Turns Passed 1536 | 75 1442 19 Spaces Moved 898 | 45 846 7 Core 1 | 1 . . Treads . | . . . Legs . | . . . Wheels 897 | 44 846 7 Hover . | . . . Flight . | . . . Fastest Speed 50 | 50 80 140 Average Speed 118 | 79 120 157 Slowest Speed 200 | 80 140 200 Overloaded Moves . | . . . Propulsion Burnouts . | . . . Robots Hopped . | . . . Potential Cave-ins . | . . . Cave-ins Triggered . | . . . Exploration Rate (%) 32 | 3 90 3 Regions Visited 2 Branch Regions 1 Pre-discovered Areas . | . . . Known Exits Taken . | . . . Unknown Exits Taken 2 | 1 1 . Scrap Searched . | . . . Spaces Dug . | . . . Terrain Destroyed 7 | . 7 . Melee . | . . . Projectile . | . . . AOE 7 | . 7 . Terrain Rammed . | . . . Walls Destroyed . | . . . Machines Disabled . | . . . Actions | -11 -10 -10 --------- Run | Yrd Mat Min Total 1192 | 64 1117 11 Wait 161 | 3 156 2 Move 896 | 44 845 7 Hop . | . . . Pick Up 20 | 2 18 . Fast Attach 7 | 7 . . Attach 6 | . 6 . Detach . | . . . Swap 7 | . 7 . Drop 1 | . 1 . Fire 83 | 8 75 . Melee 11 | . 9 2 Ram . | . . . Kick . | . . . Crush . | . . . Escape Stasis . | . . . Rewire . | . . . Trap . | . . . Miscellaneous . | . . . Route ------- -11/Scrapyard -10/Materials (discovered 5 exits: [*Mat x3] / [*Min] / [*Sub]) -10/Mines History --------- Turn | Location | Event 19 | -11/Scrapyard | Discovered new exit (range 15) 76 | -11/Scrapyard | Entered Materials 180 | -10/Materials | Discovered new exit (range 15) 311 | -10/Materials | Build established: Mutant 581 | -10/Materials | Discovered new exit (range 8) 982 | -10/Materials | Discovered new exit (range 15) 1109 | -10/Materials | Lost 3 parts (1p1u1w) 1150 | -10/Materials | Core integrity fell below 50% 1198 | -10/Materials | Lost 4 parts (2n2w) 1242 | -10/Materials | Discovered new exit (range 10) 1342 | -10/Materials | Discovered new exit (range 5) 1518 | -10/Materials | Entered Mines 1531 | -10/Mines | Core integrity fell below 20% 1537 | -10/Mines | Destroyed by G-47 Trooper with Particle Gun Last Messages --------------- 01242_ U-05 Engineer builds a Wall. 01253_ Sneak attack on U-05 Engineer. 01253_ U-05 Engineer suffers critical hit (Smash). 01253_ U-05 Engineer destroyed. 01256_ Acquired 24 matter. 01258_ Acquired Wheel. 01342_ EXIT=FOUND 01427_ K-01 Serf cleans the Pressure Siphon. 01470_ Triggered Shock Trap. 01470_ The floor emits a surge of raw power. 01470_ System corrupted (+2). 01472_ Triggered Shock Trap. 01472_ The floor emits a surge of raw power. 01472_ System corrupted (+2). 01480_ Acquired Lgt. Armor Plating. LOCATION=UNKNOWN GOAL=ESCAPE 01527_ System corrupted: Wheel rejected. Map ----- +----------------------------------------------------+ | ?????????????????????????????????????????????????? | | ?????????????????????????????????????????????????? | | ?????????????????????????????????????????????????? | | ?????????????????????????????????????????????????? | | ?????????????????????????????????????????????????? | | ?????????????????????????????????????????????????? | | ?????????????????????????????????????????????????? | | ?????????????????????????????????????????????????? | | ?????????????????????????????????????????????????? | | ?????????????????????????????????????????????????? | | ?????????????????????????????????????????????????? | | ?????????????????????????????????????????????????? | | ?????????????????????????????????????????????????? | | ?????????????????????????????????????????????????? | | ?????????????????????????????????????????????????? | | ?????????????????????????????????????????????????? | | ???????????????????????????###???????????????????? | | ?????????????????????????## ##??????????????????? | | ?????????????????????????# ???????????????????? | | ????????????????????????? ???????????????????? | | ????????????????????????? ????????????????????? | | ????????????????????????? #????????????????????? | | ?????????????????????????# ##???????????????????? | | ?????????????????????????# ##??????????????????? | | ????????????????# ######## #??????????????????? | | ????????????????# = @g #??????????????????? | | ????????????????#########g ##??????????????????? | | ????????????????????????## ##???????????????????? | | ?????????????????????????####????????????????????? | | ?????????????????????????????????????????????????? | | ?????????????????????????????????????????????????? | | ?????????????????????????????????????????????????? | | ?????????????????????????????????????????????????? | | ?????????????????????????????????????????????????? | | ?????????????????????????????????????????????????? | | ?????????????????????????????????????????????????? | | ?????????????????????????????????????????????????? | | ?????????????????????????????????????????????????? | | ?????????????????????????????????????????????????? | | | | | | | | | | | | | | | | | | | | | | | +----------------------------------------------------+ Best States ------------- Heat Dissipation 25 Energy Generation 10 Energy Capacity 125 Matter Stores 273 Matter Capacity 300 Sight Range 16 Terrain Scan Density 10 Evasion (%) 44 Targeting Accuracy 5 Item Schematics ----------------- None Robot Schematics ------------------ None Fabricated ------------ Nothing Repaired ---------- Nothing Studied --------- None Alien Tech Used ----------------- None Achievements -------------- None Challenges ------------ None Game ------ Seed BraceAssemblyCartridge Manual? 0 Play Time 00:19:55 Cumulative 17.3 hours Start 2026.06.17 @ 21:40:40 End 2026.06.17 @ 22:00:38 Sessions 1 Manual Loads 0 Difficulty Rogue Special Mode None Game No. 23 Rogue 19 Adventurer 4 Explorer 0 Win Type - Total 0 Types 0/0/0/0/0/0/0/0/0/0 Lore% 8 Gallery% 10 Achievement% 12 Wizard Run 0 Options --------- Layout 2 ASCII 0 Keyboard 1 Movement Numpad Keybinds 0 Fullscreen 1 Font 24/Terminus Map View 50x44 Zoom Use 56% Tactical HUD 1 Map Filters NONE Filters NONE Steam 1 RUN: f32706a4-0bf7-4017-b9e9-4d4c6290e4e4